bitfinex/quotes_SOLUSD_20241113
["timestamp","ask_amount","ask_price","bid_price","bid_amount"]
[1731525976230,43.59628099,214.44,214.33,48.70538839]
[1731525976406,0.92924273,214.43,214.37,43.59628099]
[1731525976609,43.59628099,214.44,214.33,60.36958839]
[1731525976831,43.59628099,214.42,214.33,60.36958839]
[1731525977128,0.8,214.46,214.37,43.59628099]
[1731525977129,0.92924273,214.41,214.37,43.59628099]
[1731525977337,43.59628099,214.44,214.35,43.59628099]
[1731525977516,0.8,214.46,214.43,43.59628099]
[1731525977907,0.8,214.46,214.33,40.1017074]
[1731525978117,0.12549,214.44,214.33,16.7732074]
[1731525978319,0.12549,214.42,214.33,12.1077074]
[1731525978527,0.92924273,214.41,214.33,12.1077074]
[1731525978930,0.92924273,214.41,214.33,55.70398839]
[1731525979222,43.59628099,214.39,214.33,0.4435074]
[1731525979424,0.92924273,214.38,214.33,48.70538839]
[1731525979626,43.72177099,214.41,214.33,0.4435074]
[1731525979835,0.92924273,214.4,214.33,0.4435074]
[1731525980040,0.92924273,214.4,214.35,43.59628099]
[1731525980334,43.59628099,214.37,214.33,0.4435074]
[1731525980509,43.59628099,214.41,214.33,0.4435074]
[1731525980830,0.92924273,214.4,214.33,0.4435074]
[1731525981012,0.92924273,214.4,214.33,12.1077074]
[1731525981347,43.59628099,214.39,214.33,12.1077074]
[1731525981550,0.92924273,214.38,214.33,0.4435074]
[1731525981755,0.12549,214.34,214.33,0.4435074]
[1731525981929,1.15473273,214.34,214.33,0.4435074]
[1731525982848,1.15473273,214.34,214.11,16.7897074]
[1731525982849,0.1,214.26,214.11,16.7897074]
[1731525983061,0.1,214.26,214.11,60.38598839]
[1731525983062,43.59628099,214.21,214.11,60.38598839]
[1731525983345,43.59628099,214.19,214.11,60.38598839]
[1731525983533,0.92924273,214.18,214.11,60.38598839]
[1731525983734,0.92924273,214.18,214.11,0.4435074]
[1731525983735,43.59628099,214.15,214.11,0.4435074]
[1731525984036,0.92924273,214.14,214.11,0.4435074]
[1731525984240,43.59628099,214.13,214.11,0.4435074]
[1731525984443,0.92924273,214.12,214.11,0.4435074]
[1731525984754,0.92924273,214.14,214.11,0.4435074]
[1731525984955,0.32549,214.12,214.11,0.4435074]
[1731525985125,0.32549,214.12,214.0,2.0]
[1731525985126,4.7711,214.08,214.0,2.0]
[1731525985325,43.59628099,214.03,214.0,2.0]
[1731525985529,0.92924273,214.02,214.0,2.0]
[1731525985730,0.1,214.06,214.0,2.0]
[1731525985731,43.59628099,214.04,214.0,2.0]
[1731525985948,0.92924273,214.06,214.0,2.0]
[1731525985949,43.59628099,214.02,214.0,2.0]
[1731525986142,0.92924273,214.01,214.0,2.0]
[1731525986343,43.59628099,214.04,214.0,2.0]
[1731525986543,0.92924273,214.03,214.01,43.59628099]
[1731525986750,43.59628099,214.08,214.0,2.0]
[1731525986953,0.92924273,214.07,214.0,2.0]
[1731525987253,0.92924273,214.09,214.0,45.59628099]
[1731525987763,43.59628099,214.08,214.0,45.59628099]
[1731525987966,5.60024273,214.09,214.0,2.0]
[1731525987967,43.59628099,214.06,214.0,2.0]
[1731525988256,43.59628099,214.04,214.0,2.0]
[1731525988557,0.92924273,214.03,214.0,2.0]
[1731525989373,43.59628099,214.02,214.0,2.0]
[1731525989677,1.15473273,214.01,214.0,2.0]
[1731525990269,0.1,213.94,213.9,0.4435074]
[1731525990451,43.59628099,213.91,213.9,0.4435074]
[1731525990773,0.92924273,213.91,213.9,0.4435074]
[1731525992272,43.72177099,213.91,213.9,0.4435074]
[1731525992598,44.65101372,213.91,213.9,0.4435074]
[1731525993447,48.39657099,213.91,213.9,0.4435074]
[1731525994373,49.42581372,213.91,213.9,0.4435074]
[1731525994671,73.20269772,213.91,213.9,0.4435074]
[1731525994847,73.20269772,213.91,213.69,12.0216]
[1731525994848,0.12549,213.86,213.72,43.59628099]
[1731525995050,43.59628099,213.79,213.7,43.59628099]
[1731525995267,0.92924273,213.78,213.7,43.59628099]
[1731525995472,43.59628099,213.77,213.68,44.03978839]
[1731525995648,0.92924273,213.76,213.7,43.59628099]
[1731525995855,0.92924273,213.83,213.75,43.59628099]
[1731525996073,0.92924273,213.83,213.77,43.59628099]
[1731525996354,0.92924273,213.83,213.69,0.1]
[1731525996355,0.92924273,213.83,213.76,43.59628099]
[1731525996568,0.92924273,213.83,213.69,0.2]
[1731525996569,43.59628099,213.89,213.8,43.59628099]
[1731525996888,0.92924273,213.88,213.8,43.59628099]
[1731525997088,43.59628099,213.83,213.68,0.1]
[1731525997381,43.59628099,213.81,213.72,43.59628099]
[1731525997571,43.59628099,213.77,213.64,31.7113]
[1731525997757,0.92924273,213.76,213.64,31.7113]
[1731525997954,0.92924273,213.8,213.66,0.1]
[1731525998179,0.92924273,213.8,213.68,0.1]
[1731525998361,0.92924273,213.85,213.71,0.2]
[1731525998562,0.92924273,213.89,213.71,0.1]
[1731525998887,0.92924273,213.89,213.71,0.2]
[1731525999059,5.99801482,213.98,213.84,43.59628099]
[1731525999060,43.59628099,213.93,213.84,43.59628099]
[1731525999387,43.59628099,213.91,213.82,43.59628099]
[1731525999555,0.92924273,213.9,213.82,43.59628099]
[1731525999756,0.92924273,213.9,213.8,43.59628099]
[1731525999967,43.59628099,213.85,213.76,43.59628099]
[1731526000272,43.59628099,213.81,213.7,43.59628099]
[1731526000468,0.92924273,213.84,213.59,0.2]
[1731526000469,43.59628099,213.77,213.68,43.59628099]
[1731526000673,0.92924273,213.76,213.7,43.59628099]
[1731526000864,43.59628099,213.77,213.68,43.59628099]
[1731526001180,43.69628099,213.84,213.66,43.59628099]
[1731526001181,43.59628099,213.75,213.66,43.59628099]
[1731526001354,0.2,213.79,213.55,33.2029]
[1731526001355,43.59628099,213.73,213.62,43.59628099]
[1731526001557,43.59628099,213.73,213.55,33.2029]
[1731526001558,43.59628099,213.69,213.55,33.2029]
[1731526001761,43.59628099,213.63,213.54,43.59628099]
[1731526001990,0.92924273,213.62,213.52,43.59628099]
[1731526002285,0.92924273,213.62,213.56,43.59628099]
[1731526002468,0.92924273,213.64,213.5,0.6244812]
[1731526002779,43.59628099,213.63,213.53,43.59628099]
[1731526002971,43.59628099,213.71,213.61,43.59628099]
[1731526003177,4.6787,213.74,213.51,106.82418099]
[1731526003178,0.92924273,213.7,213.65,43.59628099]
[1731526003479,43.59628099,213.67,213.58,43.59628099]
[1731526003684,0.92924273,213.66,213.55,43.59628099]
[1731526003894,43.59628099,213.65,213.55,43.59628099]
[1731526004068,0.92924273,213.64,213.55,43.59628099]
[1731526004264,0.92924273,213.64,213.57,43.59628099]
[1731526004488,0.92924273,213.64,213.54,11.7074]
[1731526004697,0.92924273,213.71,213.63,43.59628099]
[1731526004987,0.92924273,213.71,213.67,43.59628099]
[1731526005171,0.92924273,213.74,213.67,43.59628099]
[1731526005369,0.92924273,213.74,213.71,43.59628099]
[1731526005578,43.59628099,213.8,213.71,43.59628099]
[1731526005579,0.92924273,213.79,213.71,43.59628099]
[1731526005770,0.1,213.87,213.77,43.59628099]
[1731526005771,43.59628099,213.86,213.77,43.59628099]
[1731526005981,43.59628099,213.8,213.66,23.776884]
[1731526006189,0.92924273,213.79,213.66,23.776884]
[1731526006369,11.25555984,213.87,213.66,23.776884]
[1731526006370,0.92924273,213.84,213.67,0.1]
[1731526006570,0.92924273,213.84,213.66,23.776884]
[1731526006774,0.12549,213.83,213.66,23.776884]
[1731526007082,0.92924273,213.82,213.66,23.776884]
[1731526007276,0.92924273,213.82,213.74,43.59628099]
[1731526007490,0.92924273,213.82,213.66,23.776884]
[1731526007491,48.27328099,213.81,213.72,43.59628099]
[1731526007792,43.59628099,213.77,213.68,43.59628099]
[1731526007988,43.59628099,213.73,213.64,43.59628099]
[1731526008165,0.92924273,213.72,213.64,43.59628099]
[1731526008370,0.92924273,213.72,213.55,44.5206]
[1731526008371,43.59628099,213.71,213.62,43.59628099]
[1731526008695,0.92924273,213.7,213.62,43.59628099]
[1731526008886,0.92924273,213.7,213.64,43.59628099]
[1731526009068,43.59628099,213.69,213.6,43.59628099]
[1731526009389,0.1,213.76,213.62,43.59628099]
[1731526009390,0.92924273,213.68,213.62,43.59628099]
[1731526009589,0.92924273,213.7,213.66,43.59628099]
[1731526009782,0.92924273,213.73,213.66,43.59628099]
[1731526009987,0.92924273,213.73,213.68,43.59628099]
[1731526010169,0.92924273,213.75,213.7,43.59628099]
[1731526010373,24.6038,213.88,213.62,43.59628099]
[1731526010374,0.92924273,213.78,213.74,43.59628099]
[1731526010591,0.92924273,213.82,213.74,43.59628099]
[1731526010794,43.59628099,213.75,213.66,43.59628099]
[1731526010978,0.1,213.8,213.55,12.9004]
[1731526010979,43.59628099,213.73,213.64,43.59628099]
[1731526011174,43.59628099,213.79,213.7,43.59628099]
[1731526011387,0.92924273,213.78,213.74,43.59628099]
[1731526011578,0.92924273,213.82,213.76,43.59628099]
[1731526011774,0.92924273,213.82,213.78,43.59628099]
[1731526011997,0.92924273,213.86,213.8,43.59628099]
[1731526012187,48.27078099,213.93,213.73,43.59628099]
[1731526012188,43.59628099,213.89,213.81,43.59628099]
[1731526012388,0.92924273,213.88,213.85,43.59628099]
[1731526012701,0.92924273,213.93,213.87,43.59628099]
[1731526012899,0.92924273,213.93,213.89,43.59628099]
[1731526013116,43.72177099,213.96,213.87,43.59628099]
[1731526013277,0.92924273,213.95,213.87,43.59628099]
[1731526013475,43.59628099,213.94,213.85,43.59628099]
[1731526013776,5.60314273,213.95,213.81,43.59628099]
[1731526013777,43.59628099,213.9,213.81,43.59628099]
[1731526013975,0.92924273,213.89,213.83,43.59628099]
[1731526014179,0.92924273,213.89,213.74,23.776884]
[1731526014378,43.59628099,213.85,213.77,43.59628099]
[1731526014581,0.92924273,213.84,213.77,43.59628099]
[1731526014789,0.92924273,213.84,213.75,43.59628099]
[1731526014982,0.92924273,213.84,213.62,43.79628099]
[1731526014983,43.59628099,213.77,213.69,43.59628099]
[1731526015185,43.59628099,213.75,213.65,43.59628099]
[1731526015376,0.92924273,213.74,213.65,43.59628099]
[1731526015572,0.92924273,213.74,213.69,43.59628099]
[1731526015777,0.92924273,213.74,213.71,43.59628099]
[1731526015974,0.92924273,213.78,213.71,43.59628099]
[1731526016201,0.92924273,213.78,213.73,43.59628099]
[1731526016695,0.92924273,213.78,213.77,43.59628099]
[1731526016900,4.6769,213.82,213.64,0.1]
[1731526016901,0.92924273,213.81,213.73,43.59628099]
[1731526017106,0.92924273,213.81,213.75,43.59628099]
[1731526017281,0.92924273,213.81,213.62,43.69628099]
[1731526017282,44.52552372,213.81,213.73,43.59628099]
[1731526017482,44.52552372,213.81,213.62,43.69628099]
[1731526017483,4.6772,213.8,213.71,43.59628099]
[1731526017799,0.92924273,213.8,213.67,0.1]
[1731526017997,43.59628099,213.84,213.74,43.59628099]
[1731526018199,0.92924273,213.83,213.73,43.59628099]
[1731526018384,0.92924273,213.88,213.73,43.59628099]
[1731526018589,0.92924273,213.88,213.82,43.59628099]
[1731526018919,0.92924273,213.88,213.73,43.59628099]
[1731526018920,0.92924273,213.88,213.86,43.59628099]
[1731526019120,43.59628099,213.88,213.77,43.59628099]
[1731526019416,5.60514273,213.87,213.77,43.59628099]
[1731526019591,43.59628099,213.95,213.74,31.9234]
[1731526019592,0.92924273,213.92,213.85,43.59628099]
[1731526019786,43.59628099,213.9,213.74,31.9234]
[1731526019991,0.92924273,213.89,213.75,23.776884]
[1731526020192,0.92924273,213.93,213.87,43.59628099]
[1731526020410,0.92924273,213.97,213.89,43.59628099]
[1731526020788,0.92924273,213.97,213.93,43.59628099]
[1731526020991,5.60184273,214.01,213.93,43.59628099]
[1731526021293,0.92924273,214.01,213.97,43.59628099]
[1731526021493,43.59628099,214.06,213.97,43.59628099]
[1731526021710,0.92924273,214.05,213.97,43.59628099]
[1731526021912,0.92924273,214.05,213.9,0.1]
[1731526022213,23.86008913,214.29,213.87,13.0824]
[1731526022214,0.92924273,214.07,214.02,43.59628099]
[1731526022522,0.92924273,214.07,213.95,43.59628099]
[1731526022523,43.59628099,214.06,213.96,43.59628099]
[1731526022690,43.59628099,214.04,213.94,43.59628099]
[1731526022890,44.52552372,214.03,213.94,43.59628099]
[1731526023200,43.59628099,214.01,213.92,43.59628099]
[1731526023509,0.12549,213.94,213.7,12.4766]
[1731526023804,43.59628099,213.86,213.77,43.59628099]
[1731526024013,0.92924273,213.85,213.77,43.59628099]
[1731526024200,43.59628099,213.82,213.73,43.59628099]
[1731526024395,43.59628099,213.82,213.65,31.9826]
[1731526024396,43.59628099,213.79,213.71,43.59628099]
[1731526024598,43.59628099,213.73,213.65,43.59628099]
[1731526024817,0.1,213.71,213.54,30.1772]
[1731526024990,0.92924273,213.7,213.54,30.1772]
[1731526025195,43.59628099,213.67,213.56,43.59628099]
[1731526025414,43.59628099,213.62,213.53,43.59628099]
[1731526025594,43.59628099,213.6,213.51,43.59628099]
[1731526025794,4.7813,213.62,213.39,0.1]
[1731526025795,43.59628099,213.54,213.45,43.59628099]
[1731526025990,43.59628099,213.52,213.33,12.2857]
[1731526026191,7.48478035,213.51,213.38,43.59628099]
[1731526026423,21.25473273,213.51,213.38,43.59628099]
[1731526026629,0.12549,213.48,213.22,0.1]
[1731526026934,20.2,213.49,213.21,0.599961]
[1731526026935,43.59628099,213.39,213.29,43.59628099]
[1731526027144,0.92924273,213.38,213.33,43.59628099]
[1731526027430,0.92924273,213.4,213.29,4.6884]
[1731526027623,43.59628099,213.39,213.31,43.59628099]
[1731526027828,0.92924273,213.38,213.29,16.4095]
[1731526028034,0.92924273,213.47,213.29,16.5095]
[1731526028231,0.92924273,213.47,213.42,43.59628099]
[1731526028534,0.92924273,213.5,213.44,43.59628099]
[1731526028716,0.92924273,213.5,213.46,43.59628099]
[1731526029111,0.92924273,213.54,213.49,43.59628099]
[1731526029326,0.92924273,213.54,213.47,43.59628099]
[1731526029837,43.59628099,213.52,213.43,43.59628099]
[1731526030020,43.59628099,213.46,213.35,11.7175]
[1731526030220,43.59628099,213.4,213.31,43.59628099]
[1731526030413,43.59628099,213.51,213.27,43.59628099]
[1731526030414,1.02924273,213.39,213.27,43.59628099]
[1731526030617,0.12549,213.38,213.24,4.6895]
[1731526030819,43.59628099,213.34,213.25,43.59628099]
[1731526031135,43.59628099,213.32,213.23,43.59628099]
[1731526031318,0.92924273,213.31,213.23,43.59628099]
[1731526031521,0.92924273,213.31,213.25,43.59628099]
[1731526031716,43.59628099,213.27,213.21,0.599961]
[1731526032032,43.59628099,213.23,213.21,0.599961]
[1731526032342,0.92924273,213.22,213.21,0.599961]
[1731526032509,0.92924273,213.26,213.21,0.599961]
[1731526032710,43.59628099,213.25,213.21,0.599961]
[1731526033019,0.92924273,213.24,213.21,0.599961]
[1731526033211,4.6882,213.3,213.21,0.599961]
[1731526033416,43.59628099,213.22,213.21,0.599961]
[1731526033627,43.59628099,213.24,213.21,0.599961]
[1731526033834,0.1,213.17,213.1,22.46290929]
[1731526034050,0.1,213.12,213.1,22.46290929]
[1731526034252,43.59628099,213.13,213.1,22.46290929]
[1731526034548,20.22549,213.12,213.1,22.46290929]
[1731526034749,27.09218611,213.12,213.1,22.46290929]
[1731526035057,0.1,213.23,213.1,22.46290929]
[1731526035228,43.59628099,213.17,213.1,22.46290929]
[1731526035434,20.0,213.21,213.1,22.46290929]
[1731526035435,43.59628099,213.15,213.1,22.46290929]
[1731526035738,43.59628099,213.13,213.1,22.46290929]
[1731526035940,20.12549,213.1,213.0,5.0]
[1731526036241,64.13354187,213.01,213.0,5.0]
[1731526036426,70.12850811,213.01,213.0,5.0]
[1731526036631,70.02850811,213.01,213.0,5.0]
[1731526036852,64.03354187,213.01,213.0,5.0]
[1731526037032,64.03354187,213.01,213.0,2.5]
[1731526037232,0.1,213.05,213.0,2.5]
[1731526037430,5.40666791,213.07,213.0,2.5]
[1731526037431,44.03354187,213.07,213.0,2.5]
[1731526037634,44.03354187,213.09,213.0,46.53354187]
[1731526038040,44.03354187,213.11,213.02,44.03354187]
[1731526038551,44.03354187,213.18,213.09,44.03354187]
[1731526038751,44.03354187,213.12,213.02,44.03354187]
[1731526038954,11.70418947,213.19,213.07,44.03354187]
[1731526039154,44.03354187,213.15,213.07,44.03354187]
[1731526039353,0.1,213.16,213.01,16.4311]
[1731526039653,0.12549,213.14,213.01,16.4311]
[1731526039950,0.1,213.17,213.01,16.4311]
[1731526040159,4.6902,213.21,213.03,20.0]
[1731526040659,4.6902,213.21,212.92,33.113861]
[1731526040660,0.1,213.01,212.92,0.599961]
[1731526040952,44.25903187,212.93,212.92,0.599961]
[1731526041130,7.12234572,212.93,212.92,0.599961]
[1731526041331,0.1,212.9,212.77,4.6996]
[1731526041543,4.6961,212.94,212.78,4.6994]
[1731526041740,4.6961,212.94,212.8,5.5791]
[1731526041943,28.27835312,213.03,212.8,5.5791]
[1731526042142,11.734,213.06,212.8,5.5791]
[1731526042143,4.6943,213.02,212.8,17.4272]
[1731526042456,4.69715868,213.01,212.89,44.03354187]
[1731526042664,48.72744187,213.04,212.95,44.03354187]
[1731526043172,44.03354187,213.02,212.92,44.03354187]
[1731526043370,44.03354187,213.02,212.85,44.03354187]
[1731526043371,4.6924,213.11,212.9,0.2]
[1731526043541,0.1,213.17,212.95,16.4357]
[1731526043748,0.1,213.14,212.95,11.7398]
[1731526044065,0.1,213.15,212.95,11.7398]
[1731526044066,4.66133646,213.15,212.95,16.4357]
[1731526044248,44.03354187,213.12,213.03,44.03354187]
[1731526044581,31.3006,213.03,212.66,16.51153734]
[1731526044862,44.03354187,212.72,212.66,0.4868764]
[1731526045243,44.03354187,212.68,212.66,0.4868764]
[1731526046038,44.03354187,212.72,212.66,0.4868764]
[1731526046469,44.03354187,212.7,212.66,0.4868764]
[1731526046645,44.03354187,212.74,212.66,4.7188764]
[1731526046843,44.03354187,212.76,212.66,4.7188764]
[1731526047042,44.03354187,212.82,212.72,44.03354187]
[1731526047255,44.03354187,212.79,212.69,44.03354187]
[1731526047451,4.32059213,212.86,212.66,15.3991764]
[1731526047652,44.03354187,212.96,212.7,0.2]
[1731526047855,0.1,212.87,212.67,14.8116]
[1731526048060,4.6961,212.94,212.68,20.1]
[1731526048265,4.6961,212.94,212.68,20.0]
[1731526048468,0.2,212.89,212.68,20.0]
[1731526048674,44.03354187,212.79,212.7,44.03354187]
[1731526048848,44.03354187,212.85,212.76,44.03354187]
[1731526049061,44.03354187,212.91,212.82,44.03354187]
[1731526049287,44.03354187,212.91,212.83,44.03354187]
[1731526049587,44.03354187,212.95,212.85,44.03354187]
[1731526049783,44.03354187,212.91,212.84,10.5711]
[1731526049961,44.03354187,212.89,212.84,10.5711]
[1731526050577,4.6957,212.97,212.84,10.5711]
[1731526050578,44.03354187,212.91,212.84,10.5711]
[1731526050791,44.03354187,212.89,212.81,4.2289]
[1731526050960,44.03354187,212.82,212.73,16.3141]
[1731526051283,0.14097739,212.84,212.73,16.3141]
[1731526051768,44.17451926,212.84,212.75,44.03354187]
[1731526052379,0.14097739,212.84,212.82,44.03354187]
[1731526053164,0.14097739,212.84,212.76,44.03354187]
[1731526053382,0.14097739,212.84,212.78,44.03354187]
[1731526053587,0.14097739,212.84,212.82,44.03354187]
[1731526053885,0.14097739,212.84,212.74,44.03354187]
[1731526053886,0.14097739,212.84,212.83,4.2287]
[1731526054087,0.14097739,212.84,212.81,10.5723]
[1731526054088,0.14097739,212.84,212.81,14.8014]
[1731526054383,0.14097739,212.84,212.82,44.03354187]
[1731526054562,0.14097739,212.84,212.83,20.0]
[1731526054976,0.14097739,212.84,212.83,20.2]
[1731526055176,44.03354187,213.01,212.83,64.23354187]
[1731526055392,70.0,213.2,212.83,64.23354187]
[1731526055393,44.03354187,213.05,212.97,44.03354187]
[1731526055598,44.03354187,213.09,212.99,44.03354187]
[1731526055799,44.03354187,213.09,212.91,0.1]
[1731526055800,0.80320405,213.09,213.01,44.03354187]
[1731526056090,44.03354187,213.1,213.01,44.03354187]
[1731526056268,44.03354187,213.02,212.94,10.5662]
[1731526056478,44.03354187,213.0,212.91,44.03354187]
[1731526056679,44.03354187,212.98,212.89,44.03354187]
[1731526056979,4.98712957,212.97,212.87,44.03354187]
[1731526057179,44.03354187,212.96,212.87,44.03354187]
[1731526057387,44.03354187,212.98,212.89,44.03354187]
[1731526057773,44.03354187,212.92,212.83,44.03354187]
[1731526057974,0.12549,212.89,212.81,44.03354187]
[1731526058174,44.03354187,212.83,212.67,13.1506]
[1731526058394,44.03354187,212.83,212.74,44.03354187]
[1731526058692,6.62254499,212.92,212.51,23.59699751]
[1731526058693,44.03354187,212.77,212.68,44.03354187]
[1731526058894,44.03354187,212.84,212.73,44.03354187]
[1731526059106,0.1,212.95,212.71,44.03354187]
[1731526059107,44.03354187,212.8,212.71,44.03354187]
[1731526059272,6.44727535,212.83,212.75,44.03354187]
[1731526059479,39.9115,212.97,212.81,44.03354187]
[1731526059480,6.44727535,212.86,212.81,44.03354187]
[1731526059689,44.03354187,212.9,212.81,44.03354187]
[1731526060000,50.48081722,212.9,212.81,44.03354187]
[1731526060174,4.6968,212.91,212.81,44.03354187]
[1731526060379,44.03354187,212.9,212.81,44.03354187]
[1731526060682,44.03354187,212.86,212.77,44.03354187]
[1731526060889,0.12549,212.87,212.79,44.03354187]
[1731526061078,0.12549,212.87,212.74,44.03354187]
[1731526061079,44.03354187,212.9,212.8,44.03354187]
[1731526061278,44.03354187,212.9,212.77,10.5745]
[1731526061279,4.6964,212.93,212.85,44.03354187]
[1731526061578,4.48901291,213.01,212.91,44.03354187]
[1731526061777,160.5,213.15,212.84,0.1]
[1731526061778,0.1,213.14,212.86,0.1]
[1731526061992,44.03354187,213.04,212.94,44.03354187]
[1731526062177,44.03354187,213.04,212.81,0.1]
[1731526062178,44.03354187,212.97,212.88,44.03354187]
[1731526062388,44.03354187,212.99,212.92,44.03354187]
[1731526062584,6.64727535,213.03,212.81,20.0]
[1731526062774,4.22902121,213.04,212.86,44.03354187]
[1731526062775,0.12549,212.94,212.86,44.03354187]
[1731526062974,0.12549,212.92,212.84,44.03354187]
[1731526063177,44.03354187,212.95,212.86,44.03354187]
[1731526063397,48.72864187,212.99,212.9,44.03354187]
[1731526063578,48.72864187,212.99,212.79,4.2295]
[1731526063579,44.03354187,212.95,212.86,44.03354187]
[1731526063777,6.44727535,212.99,212.88,44.03354187]
[1731526064019,4.5529101,212.99,212.79,14.8033]
[1731526064313,0.12549,213.0,212.79,14.8033]
[1731526064519,0.1,212.93,212.79,10.5738]
[1731526064904,0.12549,212.8,212.7,44.03354187]
[1731526065223,6.33480086,212.84,212.73,44.03354187]
[1731526065396,44.03354187,212.84,212.75,44.03354187]
[1731526065715,44.03354187,212.82,212.73,44.03354187]
[1731526065917,44.03354187,212.84,212.75,44.03354187]
[1731526066222,49.74800035,212.85,212.76,45.04990035]
[1731526066417,45.04990035,212.81,212.72,45.04990035]
[1731526066595,56.08260121,212.86,212.76,45.04990035]
[1731526066796,0.12549,212.85,212.76,45.04990035]
[1731526067196,23.5793,212.96,212.76,45.04990035]
[1731526067197,4.6975,212.88,212.83,45.04990035]
[1731526067393,4.6975,212.88,212.76,45.04990035]
[1731526067394,0.1,213.01,212.87,45.04990035]
[1731526067707,45.04990035,212.96,212.87,45.04990035]
[1731526067901,45.04990035,212.96,212.76,45.04990035]
[1731526067902,45.04990035,212.96,212.85,45.04990035]
[1731526068218,45.04990035,212.96,212.8,12.035]
[1731526068423,4.6943,213.02,212.72,10.5772]
[1731526068424,4.697,212.9,212.82,45.04990035]
[1731526068603,49.74680035,212.91,212.82,49.27880035]
[1731526069113,4.6969,212.91,212.84,45.04990035]
[1731526069412,45.04990035,212.89,212.74,10.5758]
[1731526069616,5.75702309,212.95,212.74,10.5758]
[1731526069617,11.7311,213.11,212.88,90.0998007]
[1731526069808,4.6921,213.12,212.89,20.0]
[1731526070118,45.14990035,213.1,212.89,20.0]
[1731526070313,45.14990035,213.1,213.01,45.04990035]
[1731526070515,4.6919,213.13,213.03,45.04990035]
[1731526070696,4.6919,213.13,213.0,4.2252]
[1731526070697,4.6919,213.13,213.07,45.04990035]
[1731526071193,0.80352934,213.14,213.11,45.04990035]
[1731526071417,4.6913,213.16,213.11,45.04990035]
[1731526071804,0.80254779,213.17,213.04,0.1]
[1731526072011,0.80254779,213.17,213.0,35.9152]
[1731526072012,45.04990035,213.17,213.06,45.04990035]
[1731526072325,45.17539035,213.15,213.06,45.04990035]
[1731526072502,4.6917,213.14,213.06,45.04990035]
[1731526072697,4.6917,213.14,212.88,20.1]
[1731526072698,0.12549,213.13,212.94,10.5658]
[1731526072899,4.6917,213.14,212.86,0.1]
[1731526072900,45.04990035,213.05,212.95,45.04990035]
[1731526073222,0.12549,213.04,212.97,45.04990035]
[1731526073733,20.0,213.13,213.03,45.04990035]
[1731526074023,0.12549,213.06,212.98,45.04990035]
[1731526074199,45.04990035,213.11,213.02,45.04990035]
[1731526074527,45.04990035,213.11,212.88,45.14990035]
[1731526074528,7.28515647,213.21,213.0,0.1]
[1731526074737,4.6912,213.17,213.0,0.2]
[1731526074909,0.1,213.27,213.03,0.1]
[1731526075112,5.53427332,213.24,213.04,0.1]
[1731526075307,0.12549,213.25,213.03,0.1]
[1731526075630,1.876036,213.23,213.05,0.2]
[1731526075839,0.80280909,213.26,213.21,45.04990035]
[1731526076123,45.04990035,213.23,213.06,20.0]
[1731526076306,45.04990035,213.23,213.13,45.04990035]
[1731526076515,45.04990035,213.21,213.11,45.04990035]
[1731526076719,45.04990035,213.21,213.05,30.4029]
[1731526076720,45.04990035,213.19,213.09,45.04990035]
[1731526077029,0.12549,213.18,213.09,45.04990035]
[1731526077204,5.65725055,213.3,213.15,45.04990035]
[1731526077403,4.6895,213.25,213.05,0.1]
[1731526077626,10.93983679,213.25,213.17,45.04990035]
[1731526077811,10.13707055,213.25,213.17,45.04990035]
[1731526078012,0.12549,213.24,213.17,45.04990035]
[1731526078225,6.00295944,213.23,213.17,45.04990035]
[1731526078428,0.12549,213.22,213.15,45.04990035]
[1731526078739,46.92568735,213.26,213.06,0.1]
[1731526078910,6.00295944,213.21,213.03,20.1]
[1731526079110,4.6896,213.24,213.17,45.04990035]
[1731526079617,4.6896,213.24,213.03,20.0]
[1731526079618,0.12549,213.23,213.13,45.04990035]
[1731526079823,5.66961365,213.23,213.13,45.04990035]
[1731526080019,45.04990035,213.21,213.11,45.04990035]
[1731526080225,4.6896,213.24,213.0,45.04990035]
[1731526080226,5.93683587,213.2,213.03,0.1]
[1731526080426,5.93683587,213.2,213.06,0.1]
[1731526080630,0.80232306,213.25,213.06,0.1]
[1731526080631,0.80232306,213.25,213.19,45.04990035]
[1731526081010,4.688,213.31,213.21,45.04990035]
[1731526081230,4.688,213.31,213.13,0.1]
[1731526081231,45.04990035,213.3,213.13,0.1]
[1731526081438,5.77686365,213.29,213.22,45.04990035]
[1731526081735,4.688,213.31,213.24,45.04990035]
[1731526081935,0.80207425,213.32,213.26,45.04990035]
[1731526082115,19.16924943,213.41,213.12,45.04990035]
[1731526082116,4.6862,213.39,213.3,45.04990035]